Cogmind - Beta 9.5 @@@ ROGUE MODE // 2020.04.01 @ 18:51:59 // AFD2020/Player2 Player: PyroDawn Result: Core destroyed Performance ------------- Evolutions (0) 0 Regions Visited (2) 400 Robots Destroyed (12) 60 Value Destroyed (238) 238 Prototype IDs (5) 100 Alien Tech Used (0) 0 Bonus (291) 291 TOTAL SCORE: 1089 Bonus ------- Follower Combat Kills 291 Cogmind --------- Core Integrity 0/250 Matter 295/300 Energy 100/100 System Corruption 0% Temperature Cool (0) Movement Flying (197) Ox2 Location -10/Mines Parts ------- > --- POWER (1) -------- (None) > --- PROPULSION (2) --- Flight Unit Flight Unit > --- UTILITY (2) ------ Large Storage Unit Signal Interpreter > --- WEAPON (2) ------- Light Assault Rifle Shotgun > --- INVENTORY (10) --- Light Nuclear Core Flight Unit Flight Unit Sensor Array Target Analyzer Light Armor Plating System Shield Beam Cannon Maul Maul Peak State ------------ > --- POWER ------------ Light Ion Engine > --- PROPULSION ------- Flight Unit Flight Unit > --- UTILITY ---------- Sensor Array Signal Interpreter > --- WEAPON ----------- Maul Maul > --- INVENTORY -------- Flight Unit Flight Unit Large Storage Unit [Rating: 9] Favorites ----------- Power Light Ion Engine Engine Light Ion Engine Propulsion Flight Unit Treads Light Treads Flight Unit Flight Unit Utility Signal Interpreter Device Sensor Array Storage Large Storage Unit Processor Signal Interpreter Protection Core Shielding Weapon Light Assault Rifle Energy Cannon Beam Cannon Ballistic Gun Light Assault Rifle Impact Weapon Maul Build | -11 -10 -10 ------- Run | Scr Mat Min Slots Evolved . | . . . Power . | . . . Propulsion . | . . . Utility . | . . . Weapon . | . . . Parts Attached 34 | 5 19 10 Power 5 | 1 4 . Engine 5 | 1 4 . Core . | . . . Reactor . | . . . Propulsion 10 | 2 5 3 Treads 2 | 2 . . Leg . | . . . Wheel . | . . . Hover . | . . . Flight 8 | . 5 3 Utility 4 | . 3 1 Device 1 | . 1 . Storage 1 | . . 1 Processor 1 | . 1 . Hackware . | . . . Protection 1 | . 1 . Artifact . | . . . Weapon 15 | 2 7 6 Energy Gun . | . . . Energy Cannon 1 | . 1 . Ballistic Gun 9 | 2 2 5 Ballistic Cannon . | . . . Launcher . | . . . Special Weapon . | . . . Impact Weapon 5 | . 4 1 Slashing Weapon . | . . . Piercing Weapon . | . . . Special Melee Weapon . | . . . Unidentified Prototypes . | . . . Parts Lost 1 | . . 1 Power 1 | . . 1 Propulsion . | . . . Utility . | . . . Weapon . | . . . Highest Loss Streak 1 | . . 1 Average Slot Usage (%) 81 | . 71 86 Engine 4 | . 8 2 Treads 2 | . 8 . Flight 25 | . 19 28 Device 1 | . 2 . Storage 9 | . . 13 Processor 12 | . 8 14 Energy Cannon 1 | . 3 . Ballistic Gun 20 | . 7 26 Impact Weapon 3 | . 8 . Naked Turns . | . . . Heaviest Build 24 | 3 9 24 Greatest Support 8 | 3 8 8 Greatest Overweight (x) 2 | . 1 2 Average Overweight (x) . | . . 1 Largest Inventory Capacity 10 | 4 4 10 Average Capacity 7 | 4 4 9 Most Carried 10 | 4 4 10 Average Carried 7 | 2 3 9 Final Capacity 10 | 4 4 10 Final Carried 10 | 4 4 10 Class Distribution -------------------- 100% | Mutant Dominant Class ---------------- Mutant | -10/Materials Mutant | -10/Mines Resources | -11 -10 -10 ----------- Run | Scr Mat Min Matter Collected 657 | 195 261 201 Remotely . | . . . Salvage Created 353 | . 268 85 Parts 28 | . 23 5 Haulers Intercepted 1 | . 1 . Recyclers Shooed 3 | . 2 1 Parts Field Recycled . | . . . Retrieved Matter . | . . . Parts Self-Destructed . | . . . Prevented . | . . . Kills | -11 -10 -10 ------- Run | Scr Mat Min Combat Hostiles Destroyed 7 | . 5 2 Melee 1 | . 1 . Guns 5 | . 3 2 Cannons 1 | . 1 . Classes Destroyed 5 | . 5 . Worker 2 | . 1 1 Hauler 1 | . 1 . Watcher 2 | . 2 . Swarmer 3 | . 2 1 Grunt 4 | . 3 1 Best Kill Streak 4 | . 4 1 Combat Bots Only 3 | . 3 1 Max Kills in Single Turn 1 | . 1 1 Gunslinging . | . . . Exploded . | . . . Melee 1 | . 1 . Uniques/NPCs Destroyed . | . . . Combat | -11 -10 -10 -------- Run | Scr Mat Min Damage Taken 452 | . 116 336 Core 145 | . 21 124 Absorbed by Shields . | . . . Core Remaining (%) 100 | 100 . . Volleys Fired 41 | . 22 19 Largest 2 | . 2 2 Hottest 60 | . 60 43 Shots Fired 68 | . 30 38 Gun 54 | . 16 38 Cannon 14 | . 14 . Launcher . | . . . Special . | . . . Kinetic 54 | . 16 38 Thermal 14 | . 14 . Explosive . | . . . Electromagnetic . | . . . Robot Hit Streak 7 | . 5 7 Robot Miss Streak 9 | . 6 9 Penetration Max . | . . . Secondary Targets 1 | . 1 . Max Gunslinging Chain 1 | . 1 . Shots Hit Robots 40 | . 16 24 Core Hits 18 | . 12 6 Critical Hits . | . . . Critical Kills . | . . . Critical Parts Destroyed . | . . . Melee Attacks 7 | . 6 1 Impact 7 | . 6 1 Slashing . | . . . Piercing . | . . . Sneak Attacks 1 | . . 1 Combat Hostiles . | . . . Follow-up Attacks . | . . . Damage Inflicted 656 | . 282 374 Guns 424 | . 95 329 Cannons 88 | . 88 . Explosions . | . . . Melee 144 | . 99 45 Ramming . | . . . Kinetic 424 | . 95 329 Thermal 88 | . 88 . Explosive . | . . . Electromagnetic . | . . . Impact 144 | . 99 45 Slashing . | . . . Piercing . | . . . Highest Corruption . | . . . Average Corruption . | . . . Corruption Purged . | . . . Overload Shots . | . . . Overflow Damage 25 | . 10 15 Projectiles . | . . . Explosions . | . . . Melee 25 | . 10 15 Knockbacks 2 | . 1 1 Impact 2 | . 1 1 Kinetic . | . . . Secondary . | . . . Self-Inflicted Damage . | . . . Shots . | . . . Rammed 1 | . . 1 Targets Rammed 1 | . . 1 Kicked . | . . . Crushed . | . . . Highest Temperature 105 | . 105 13 Average Temperature 40 | . 45 6 Received Heat Transfer 51 | . 18 33 Siege Activations . | . . . Robots Corrupted . | . . . Combat Hostiles . | . . . Parts Fried 2 | . 2 . Impact Corruptions 2 | . 1 1 Robots Melted . | . . . Combat Hostiles . | . . . Parts Melted . | . . . Heat Transferred 185 | . 185 . Parts Sabotaged . | . . . Parts Stolen . | . . . Parts Stripped . | . . . Power Chain Reactions . | . . . Missiles Intercepted . | . . . Alert | -11 -10 -10 ------- Run | Scr Mat Min Peak Influence 270 | . 270 244 Average Influence 97 | . 130 84 Maximum Alert Level 1 | . 1 1 Low Security (%) 88 | 100 71 96 Level 1 11 | . 28 3 Level 2 . | . . . Level 3 . | . . . Level 4 . | . . . Level 5 . | . . . High Security . | . . . Max Security . | . . . Squads Dispatched . | . . . Investigation . | . . . Extermination . | . . . Reinforcement . | . . . Assault . | . . . Garrison . | . . . Intercept . | . . . Construction Impeded . | . . . Haulers Reinforced . | . . . Stealth | -11 -10 -10 --------- Run | Scr Mat Min Distress Signals 2 | . 2 . Communications Jammed . | . . . Distress Signals . | . . . Times Spotted 32 | . 17 15 Peak Tracking Total 4 | . 4 3 Tactical Retreats . | . . . Traps | -11 -10 -10 ------- Run | Scr Mat Min Traps Triggered . | . . . Indirectly . | . . . Trap Hack Attempts . | . . . Triggered . | . . . Disarmed 3 | . 3 . Reprogrammed . | . . . Reused . | . . . Traps Extracted . | . . . Installed . | . . . Triggered . | . . . Machines | -11 -10 -10 ---------- Run | Scr Mat Min Machines Disabled 1 | . 1 . Max in Single Turn 1 | . 1 . Machines Sabotaged . | . . . Garrisons Compromised . | . . . Overloaded Fab Kills . | . . . Fab Network Shutdowns . | . . . Hacking | -11 -10 -10 --------- Run | Scr Mat Min Machines Accessed 12 | . 11 1 Terminals 8 | . 8 . Fabricators . | . . . Repair Stations 1 | . 1 . Recycling Units 2 | . 2 . Scanalyzers . | . . . Garrison Access . | . . . Total Hacks 46 | . 45 1 Successful 34 | . 33 1 Failed 12 | . 12 . Catastrophic 1 | . 1 . Database Lockouts . | . . . Manual 31 | . 31 . Terminals 33 | . 33 . Fabricators . | . . . Repair Stations 4 | . 4 . Recycling Units 8 | . 8 . Scanalyzers . | . . . Garrison Access . | . . . Terminal Hacks 9 | . 8 1 Robot Analysis 2 | . 2 . Prototype ID Bank 3 | . 3 . Open Door 1 | . . 1 Terminal Index 1 | . 1 . Disarm Traps 1 | . 1 . Hauler Manifests 1 | . 1 . Fabricator Hacks . | . . . Repair Station Hacks 4 | . 4 . Scan Component 2 | . 2 . Repair 2 | . 2 . Recycling Unit Hacks 2 | . 2 . Report Inventory 1 | . 1 . Retrieve Components 1 | . 1 . Scanalyzer . | . . . Garrison Access Hacks . | . . . Unauthorized Hacks 42 | . 42 . Terminals 15 | . 15 . Track 5 | . 5 . Assimilate 1 | . 1 . Botnet 8 | . 8 . Operators 1 | . 1 . Fabricators . | . . . Repair Stations . | . . . Recycling Units 4 | . 4 . Monitor 1 | . 1 . Reject 1 | . 1 . Recyclers 1 | . 1 . Mask 1 | . 1 . Scanalyzers . | . . . Garrison Access . | . . . Data Cores Recovered . | . . . Used . | . . . Hacking Detections 10 | . 10 . Full Trace Events 1 | . 1 . Feedback Events . | . . . Feedback Blocked . | . . . Robot Schematics Acquired . | . . . Robots Built . | . . . Matter . | . . . Time . | . . . Total Robot Build Rating . | . . . Part Schematics Acquired . | . . . Parts Built . | . . . Matter . | . . . Time . | . . . Total Part Build Rating . | . . . Parts Repaired 2 | . 2 . Time 52 | . 52 . Parts Recycled . | . . . Recycled Matter . | . . . Retrieved Matter . | . . . Retrieved Components 3 | . 3 . Parts Scanalyzed . | . . . Part Schematics Acquired . | . . . Parts Damaged . | . . . Bothacking | -11 -10 -10 ------------ Run | Scr Mat Min Used RIF Installer . | . . . Robots Hacked . | . . . Non-combat . | . . . Combat . | . . . Robot Hacks Applied . | . . . Relay Couplers Released . | . . . Robots Rewired . | . . . Allies Hacked . | . . . Hacks Repelled . | . . . Allies | -11 -10 -10 -------- Run | Scr Mat Min Total Allies 7 | . 2 5 Largest Group 5 | . 2 5 Highest-Rated Group 133 | . 70 133 Highest-Rated Ally 62 | . 60 62 Total Orders 15 | . 4 11 GOTO 7 | . 2 5 ROAM 1 | . . 1 FOLLOW 7 | . 2 5 Ally Attacks 56 | . 22 34 Total Damage 1123 | . 402 721 Kills 25 | . 8 17 Allies Corrupted . | . . . Allies Melted . | . . . Intel | -11 -10 -10 ------- Run | Scr Mat Min Robot Analysis Total 2 | . 2 . Derelict Logs Recovered 1 | . . 1 Drone Launches . | . . . Drone Recoveries . | . . . Exploration | -11 -10 -10 ------------- Run | Scr Mat Min Turns Passed 2719 | 47 857 1815 Spaces Moved 2037 | 67 1086 884 Core 320 | 67 253 . Treads . | . . . Legs . | . . . Wheels . | . . . Hover . | . . . Flight 1717 | . 833 884 Fastest Speed 37 | 50 37 37 Average Speed 106 | 50 41 189 Slowest Speed 197 | 50 117 197 Overloaded Moves . | . . . Propulsion Burnouts . | . . . Robots Hopped 12 | . 12 . Cave-ins Triggered . | . . . Exploration Rate (%) 66 | 3 99 97 Regions Visited 2 Branch Regions 1 Pre-discovered Areas 1 | . . 1 Known Exits Taken 1 | . 1 . Unknown Exits Taken 1 | 1 . . Scrap Searched 1 | . . 1 Spaces Dug . | . . . Terrain Destroyed . | . . . Melee . | . . . Projectile . | . . . AOE . | . . . Actions | -11 -10 -10 --------- Run | Scr Mat Min Total 2519 | 79 1453 987 Wait 353 | 2 300 51 Move 2012 | 66 1062 884 Hop 11 | . 11 . Pick Up 25 | 5 10 10 Fast Attach 12 | 3 8 1 Attach 12 | 2 7 3 Detach 8 | 1 6 1 Swap 10 | . 4 6 Drop 27 | . 17 10 Fire 41 | . 22 19 Melee 7 | . 6 1 Ram 1 | . . 1 Kick . | . . . Crush . | . . . Escape Stasis . | . . . Rewire . | . . . Trap . | . . . Miscellaneous . | . . . Route ------- -11/Scrapyard -10/Materials (discovered 4 exits: *Mat x3 / *Min) -10/Mines (discovered 2 exits: *Mat x2) History --------- Turn | Location | Event 5 | -11/Scrapyard | Discovered new exit (range 16) 48 | -11/Scrapyard | Entered Materials 233 | -10/Materials | Repaired Beam Cannon 260 | -10/Materials | Repaired Beam Cannon 301 | -10/Materials | Build established: Mutant 319 | -10/Materials | Discovered new exit (range 15) 416 | -10/Materials | Discovered new exit (range 16) 421 | -10/Materials | Identified exit to Materials 436 | -10/Materials | Discovered new exit (range 15) 784 | -10/Materials | Discovered exit to Materials (range 14) 885 | -10/Materials | Identified exit to Mines 905 | -10/Materials | Entered Mines 905 | -10/Mines | Accompanied by 2 allies 915 | -10/Mines | Met a Derelict who couldn't figure out how to use a Trap Extractor 994 | -10/Mines | Discovered exit to Materials (range 10) 1036 | -10/Mines | Core integrity fell below 50% 1189 | -10/Mines | Core integrity fell below 20% 1451 | -10/Mines | Discovered exit to Materials (range 4) 2384 | -10/Mines | Assisted by bots powering up and referring to "LRC-V3" 2720 | -10/Mines | Core destroyed Last Messages --------------- World map updated: -10/Materials. 02144_ S-10 Pest destroyed. 02154_ Dropped Flight Unit. 02154_ Acquired Flight Unit. 02155_ Acquired 5 matter. 02166_ Slammed into T-07 Excavator. 02283_ S-10 Pest destroyed. 02287_ Technician 1a suffers critical hit. 02289_ K-01 Serf collects debris. 02294_ S-10 Pest destroyed. 02295_ K-01 Serf collects debris. 02295_ Acquired 15 matter. 02298_ K-01 Serf collects debris. 02384_ Trooper 1a: "Hello LRC-V3. What is your command?" 02384_ Mercenary 1a: "Hello LRC-V3. What is your command?" 02384_ Trooper 1b: "Hello LRC-V3. What is your command?" 02610_ K-01 Serf cleans the Laser Drill. 02714_ E4-2Z2(g) destroyed. 02717_ K-01 Serf collects debris. 02718_ G-47 Trooper destroyed. Map ----- +----------------------------------------------------+ | ??????????????????????????##" !"##?????????## | | ??????????????????????????#""! ""#?????????# ! | | ??????????????????????????# *== #?????????# | | ??????????????????????????## ![ ##?????????## !] | | ?????????#####????????????###++###?????????# #[! | | ????????## ????????????# ! #?????????# !* | | ????????# ??????????### ##????????#/ | | ????##### ??????????# #????????# | | ????? ??????????# #????????# | | ??????# #??????????# < ########## | | ?????## ##?????????# | | ???### ####??????# ########## | | ??## ###????# #????????# | | ??# ##???######## ##????????# | | ??# #???######## #?????????# | | ??## ## #???# #?????????####### | | ???????## """ ##???# ########???????????????? | | ????????# """ #????# #??????????????????????? | | ????????# """ ####?# #??????????????????????? | | #####???# #?# #??????????????????????? | | ##??## ## #?# #??????????????????##### | | #???## ## #?# #?????????????????## # | | #????## ### #?# #????????????????## # | | ## ##?????# ### ### ###?????????????## | | ?####??????# ! =*@k gg g##??#####????## | | ???????###?## % %*! @ #### ##???# | | ??????## ##?# g ### #### #???# | | ??????# #### #?# #??# #???## | | ??????# ### #?# #??### ##???## | | ####### ### #?# #????## ####?###### | | ### ? #?????# ##?????## | | ######## ## ######?????# ##?????# | | #??????###### #####??????????## ### ####### | | #???????????# #???????????????# ##?## ## ## | | #?????????### ##??????????????# #???## | | #??????#### ##?????????????# #????# | | ???????# ##????????????# ##???## ### ! | | ???????# #????????????# #????# ###?## | | #####??# #???????????## #????# #????# | | =| ####### ##???????????# ##????# #????## | | !%! ## ###????????????# ##?????# #?????### | | = #### #####?????########## ##???### #???????# | | ##??# #?????????# ##??# #???????# | | ###???# ###???????# ######### ##?# #?????### | | ##?????# ##??????# #########! = #?# ##?????# | | ##??##### ######## ## !% * ### #??????# | | #??## ## = [==[ #??????# | | ??## """ ## ##### =* #?????## | | ??# """ ########## #???# *########????## | | ??# """ #????????# ##??# #???????????# | +----------------------------------------------------+ Best States ------------- Heat Dissipation 25 Energy Generation 10 Energy Capacity 125 Matter Stores 300 Matter Capacity 300 Sight Range 16 Robot Scan Range 10 Terrain Scan Density 10 Core Shielding 20 Evasion (%) 62 Item Schematics ----------------- None Robot Schematics ------------------ None Fabricated ------------ Nothing Alien Tech Used ----------------- None Achievements -------------- None Challenges ------------ None Game ------ Seed LauncherSwordMatter Manual? 0 Play Time 00:35:32 Cumulative 499.0 hours Start 2020.04.01 @ 18:16:31 End 2020.04.01 @ 18:51:59 Sessions 1 Manual Loads 0 Difficulty Rogue Special Mode AFD2020/Player2 Game No. 146 Rogue 146 Adventurer 0 Explorer 0 Win Type - Total 2 Types 1/0/1/0/0/0/0 Lore% 72 Gallery% 80 Achievement% 58 Wizard Run 0 Options --------- ASCII 0 Keyboard 0 Movement Arrows Keybinds 0 Fullscreen 1 Font 12/Smallcaps Map View 83x54 Tactical HUD 1 Map Filters NONE Filters NONE Steam 1 RUN: 109c3c13-2bf9-4acb-81f3-f09ef0072bbe